[Event "DVM U14 2019"]
[Site "Magedburg"]
[Date "2019.12.28"]
[Round "3"]
[White "Gutewort, Paul Emil"]
[Black "Gallasch, Jonas"]
[Result "*"]
[ECO "A15"]
[WhiteElo "1714"]
[BlackElo "2107"]
[Annotator "RC"]
[PlyCount "34"]
[EventDate "2019.12.27"]
[EventType "team-tourn"]
[EventRounds "7"]
[EventCountry "GER"]
[SourceTitle "playchess.com"]
[Source "ChessBase"]
[SourceQuality "1"]
[WhiteTeam "SF Nordost Berlin"]
[BlackTeam "SG Porz"]
[WhiteTeamCountry "GER"]
[BlackTeamCountry "GER"]
[TimeControl "40/5400+30:1800+30"]

1. c4 {[%emt 0:00:00]} Nf6 {[%emt 0:00:00]} 2. g3 {[%emt 0:00:00]} g6 {[%emt 0:00:13]} 3. Bg2 {[%emt 0:00:00]} Bg7 {[%emt 0:00:07]} 4. Nc3 {[%emt 0:00:09]} d6 {[%emt 0:00:14]} 5. d3 {[%emt 0:00:24]} O-O {[%emt 0:00:36]} 6. a3 {[%emt 0:00:06]} Nbd7 {[%emt 0:01:59] unterminated} 7. e4 {[%emt 0:00:49] unterminated} e5 {unterminated} 8. Nge2 {[%emt 0:00:10] unterminated} a6 {[%emt 0:04:49]} 9. O-O {[%emt 0:00:48] unterminated} b5 {[%emt 0:01:25] unterminated} 10. h3 {[%emt 0:06:11] unterminated} Bb7 {[%emt 0:05:08] unterminated} 11. Qc2 {[%emt 0:04:22] unterminated} c6 {[%emt 0:02:54] unterminated} 12. f4 {[%emt 0:13:41] unterminated} Qb6+ {[%emt 0:18:21] unterminated} 13. Kh2 {[%emt 0:03:19] unterminated} a5 {[%emt 0:02:23] unterminated} 14. Nd1 {[%emt 0:08:01] unterminated} a4 {[%emt 0:02:14]} 15. Be3 {unterminated} Qa6 {[%emt 0:00:31] unterminated} 16. Rc1 {[%emt 0:02:35] unterminated} Rfe8 {[%emt 0:09:45] unterminated} 17. Re1 {[%emt 0:09:52] unterminated} d5 {[%emt 0:06:08] unterminated} *

[Event "DVM U14 2019"]
[Site "Magedburg"]
[Date "2019.12.28"]
[Round "3"]
[White "Sabirov, Rafael"]
[Black "Reichmann, Felix"]
[Result "*"]
[ECO "B12"]
[WhiteElo "1668"]
[BlackElo "1791"]
[Annotator "NA RC"]
[PlyCount "34"]
[EventDate "2019.12.27"]
[EventType "team-tourn"]
[EventRounds "7"]
[EventCountry "GER"]
[SourceTitle "playchess.com"]
[Source "ChessBase"]
[SourceQuality "1"]
[WhiteTeam "SG Porz"]
[BlackTeam "SF Nordost Berlin"]
[WhiteTeamCountry "GER"]
[BlackTeamCountry "GER"]
[TimeControl "40/5400+30:1800+30"]

1. e4 {[%emt 0:00:00]} c6 {[%emt 0:04:00]} 2. d4 {[%emt 0:00:00]} d6 {[%emt 0:00:05]} 3. Nc3 {[%emt 0:00:00]} Nd7 {[%emt 0:00:04]} 4. Be3 {[%emt 0:00:31] unterminated} g6 {[%emt 0:00:58] unterminated} 5. Qd2 {[%emt 0:02:49]} Bg7 {[%emt 0:00:18] unterminated} 6. h4 {[%emt 0:01:25]} h6 {[%emt 0:00:58] unterminated} 7. Bd3 {[%emt 0:06:06] unterminated} Qc7 {[%emt 0:01:48] unterminated} 8. f4 {[%emt 0:04:18] unterminated} Ngf6 {[%emt 0:19:53] unterminated} 9. e5 {[%emt 0:13:15]} Ng4 {[%emt 0:00:55] unterminated} 10. e6 {unterminated} Ndf6 {unterminated} 11. exf7+ {[%emt 0:10:49]} Kxf7 {[%emt 0:01:21] unterminated} 12. Nf3 {[%emt 0:07:02]} Nxe3 {[%emt 0:01:29]} 13. Qxe3 {[%emt 0:00:42] unterminated} Bf5 {[%emt 0:01:23] unterminated} 14. Bxf5 {[%emt 0:14:38]} gxf5 {[%emt 0:00:11] unterminated} 15. O-O-O {[%emt 0:03:24]} e6 {[%emt 0:00:54] unterminated} 16. Nh2 {[%emt 0:02:17] unterminated} Rhg8 {[%emt 0:03:33]} 17. Rhg1 {[%emt 0:00:21] unterminated} Bh8 {[%emt 0:02:54] unterminated} *

[Event "DVM U14 2019"]
[Site "Magedburg"]
[Date "2019.12.28"]
[Round "3"]
[White "Gerber, Anna Sophie"]
[Black "Joppich, Til"]
[Result "*"]
[ECO "A48"]
[WhiteElo "1513"]
[BlackElo "1916"]
[Annotator "NA RC"]
[PlyCount "31"]
[EventDate "2019.12.27"]
[EventType "team-tourn"]
[EventRounds "7"]
[EventCountry "GER"]
[SourceTitle "playchess.com"]
[Source "ChessBase"]
[SourceQuality "1"]
[WhiteTeam "ESV Gera"]
[BlackTeam "Schachzwerge Magdeburg"]
[WhiteTeamCountry "GER"]
[BlackTeamCountry "GER"]
[TimeControl "40/5400+30:1800+30"]

1. d4 {[%emt 0:00:00]} Nf6 {[%emt 0:00:00]} 2. Nf3 {[%emt 0:00:00]} g6 {[%emt 0:00:02]} 3. c4 {[%emt 0:00:10]} Bg7 {[%emt 0:00:48]} 4. Nc3 {[%emt 0:00:43]} O-O {[%emt 0:01:35]} 5. g3 {[%emt 0:01:05] unterminated} d6 {[%emt 0:00:41]} 6. Bg2 {[%emt 0:00:26] unterminated} c6 $11 {[%emt 0:00:10] unterminated} 7. O-O {[%emt 0:00:45]} Qa5 {[%emt 0:02:15] unterminated} 8. e4 {[%emt 0:05:53] unterminated} e5 {[%emt 0:08:33] unterminated} 9. d5 {[%emt 0:05:45]} cxd5 {[%emt 0:01:34] unterminated} 10. exd5 {[%emt 0:01:29] unterminated} Bg4 {[%emt 0:08:16] unterminated} 11. h3 {[%emt 0:07:02]} Bxf3 {[%emt 0:00:18] unterminated} 12. Qxf3 {[%emt 0:10:02] unterminated} Nbd7 {[%emt 0:01:56] unterminated} 13. Bd2 {[%emt 0:06:29] unterminated} Rac8 {[%emt 0:07:01] unterminated} 14. b3 {[%emt 0:04:11] unterminated} a6 {[%emt 0:09:07] unterminated} 15. Qd1 {unterminated} Qc7 {[%emt 0:05:45] unterminated} 16. Rc1 {[%emt 0:06:50] unterminated} *

[Event "DVM U14 2019"]
[Site "Magedburg"]
[Date "2019.12.28"]
[Round "3"]
[White "Beck, Felix"]
[Black "Kogan, Gabriel"]
[Result "*"]
[ECO "A20"]
[WhiteElo "1508"]
[BlackElo "1527"]
[Annotator "NA RC"]
[PlyCount "30"]
[EventDate "2019.12.27"]
[EventType "team-tourn"]
[EventRounds "7"]
[EventCountry "GER"]
[SourceTitle "playchess.com"]
[Source "ChessBase"]
[SourceQuality "1"]
[WhiteTeam "SF Nordost Berlin"]
[BlackTeam "SG Porz"]
[WhiteTeamCountry "GER"]
[BlackTeamCountry "GER"]
[TimeControl "40/5400+30:1800+30"]

1. c4 {[%emt 0:00:00]} e5 {[%emt 0:00:00]} 2. g3 {[%emt 0:00:00]} Nf6 {[%emt 0:00:00]} 3. Bg2 {[%emt 0:00:00]} c6 {[%emt 0:00:00] unterminated} 4. e3 {[%emt 0:04:52] unterminated} d5 {[%emt 0:01:07] unterminated} 5. cxd5 {[%emt 0:14:28] unterminated} cxd5 {[%emt 0:02:34] unterminated} 6. d4 {[%emt 0:01:38] unterminated} e4 {[%emt 0:08:23]} 7. Nc3 {[%emt 0:00:51] unterminated} Nc6 {[%emt 0:06:15]} 8. a3 {[%emt 0:01:40] unterminated} a6 {[%emt 0:04:08] unterminated} 9. Nge2 {[%emt 0:03:25] unterminated} Bd6 {[%emt 0:03:24]} 10. O-O {[%emt 0:01:32] unterminated} O-O {[%emt 0:00:50] unterminated} 11. Rb1 {[%emt 0:02:41] unterminated} Bf5 {[%emt 0:12:14] unterminated} 12. Ra1 {[%emt 0:08:59] unterminated} Rc8 {[%emt 0:02:31] unterminated} 13. f3 {[%emt 0:06:01] unterminated} Re8 {[%emt 0:13:38] unterminated} 14. fxe4 {[%emt 0:02:20]} Bxe4 {[%emt 0:00:34]} 15. Nxe4 {[%emt 0:00:18] unterminated} Nxe4 {[%emt 0:00:23] unterminated} *

[Event "DVM U14 2019"]
[Site "Magedburg"]
[Date "2019.12.28"]
[Round "3"]
[White "Muller, Magnus"]
[Black "Stockmann, Till"]
[Result "*"]
[ECO "B40"]
[WhiteElo "1481"]
[BlackElo "1894"]
[Annotator "NA RC"]
[PlyCount "33"]
[EventDate "2019.12.27"]
[EventType "team-tourn"]
[EventRounds "7"]
[EventCountry "GER"]
[SourceTitle "playchess.com"]
[Source "ChessBase"]
[SourceQuality "1"]
[WhiteTeam "ESV Gera"]
[BlackTeam "Schachzwerge Magdeburg"]
[WhiteTeamCountry "FAI"]
[BlackTeamCountry "GER"]
[TimeControl "40/5400+30:1800+30"]

1. e4 {[%emt 0:00:02]} c5 {[%emt 0:00:00]} 2. Nf3 {[%emt 0:00:05]} e6 {[%emt 0:00:00]} 3. g3 {[%emt 0:00:18] unterminated} d5 {[%emt 0:10:25]} 4. exd5 {[%emt 0:00:06]} exd5 {[%emt 0:00:07] unterminated} 5. d4 {[%emt 0:03:11] unterminated} Nf6 {[%emt 0:08:38]} 6. Bg2 {[%emt 0:00:12] unterminated} Nc6 {[%emt 0:03:24] unterminated} 7. O-O {[%emt 0:10:56] unterminated} c4 $14 {[%emt 0:01:22]} 8. Ne5 {[%emt 0:04:18]} Nxe5 {[%emt 0:11:58]} 9. dxe5 {[%emt 0:00:05]} Ne4 {[%emt 0:00:12]} 10. Be3 {[%emt 0:09:38]} Be6 {[%emt 0:07:35]} 11. Nc3 {[%emt 0:01:59]} Nxc3 {[%emt 0:02:39]} 12. bxc3 {[%emt 0:00:07]} g6 {[%emt 0:08:55]} 13. Qb1 {[%emt 0:01:40]} Qd7 {[%emt 0:01:26]} 14. a4 {[%emt 0:01:39]} Bg7 {[%emt 0:02:25]} 15. f4 {[%emt 0:00:25]} O-O {[%emt 0:00:38] unterminated} 16. Rd1 {[%emt 0:03:10] unterminated} Rfd8 {[%emt 0:01:29] unterminated} 17. Qb5 {[%emt 0:05:27] unterminated} *

[Event "DVM U14 2019"]
[Site "Magedburg"]
[Date "2019.12.28"]
[Round "3"]
[White "Kazimov, Alis"]
[Black "Duduka, Artem"]
[Result "0-1"]
[ECO "C50"]
[WhiteElo "1362"]
[BlackElo "1578"]
[Annotator "NA RC"]
[PlyCount "48"]
[EventDate "2019.12.27"]
[EventType "team-tourn"]
[EventRounds "7"]
[EventCountry "GER"]
[SourceTitle "playchess.com"]
[Source "ChessBase"]
[SourceQuality "1"]
[WhiteTeam "SG Porz"]
[BlackTeam "SF Nordost Berlin"]
[WhiteTeamCountry "GER"]
[BlackTeamCountry "UKR"]
[TimeControl "40/5400+30:1800+30"]

1. e4 {[%emt 0:00:00]} e5 {[%emt 0:00:00]} 2. Nf3 {[%emt 0:00:00]} Nc6 {[%emt 0:00:00]} 3. Bc4 {[%emt 0:00:00]} Be7 {[%emt 0:00:15]} 4. Nc3 {[%emt 0:00:26]} Nf6 {[%emt 0:00:16]} 5. O-O {[%emt 0:00:23]} O-O {[%emt 0:00:06]} 6. d4 {[%emt 0:01:20]} d6 {[%emt 0:00:54]} 7. d5 {[%emt 0:01:43]} Nb8 {[%emt 0:01:02]} 8. Ne1 {[%emt 0:03:25]} Nbd7 {[%emt 0:01:31]} 9. b4 {[%emt 0:02:31]} Nb6 {[%emt 0:01:14]} 10. Be2 {[%emt 0:00:46]} c6 {[%emt 0:01:40]} 11. dxc6 {[%emt 0:02:52]} bxc6 {[%emt 0:00:06]} 12. Nd3 {[%emt 0:02:30]} Qc7 {[%emt 0:03:52]} 13. f4 {[%emt 0:00:23]} Ba6 {[%emt 0:04:06]} 14. Nf2 {[%emt 0:05:31]} Bxe2 {[%emt 0:02:08]} 15. Qxe2 {[%emt 0:00:26]} Rad8 {[%emt 0:04:57]} 16. Ng4 {[%emt 0:00:46]} Nxg4 {[%emt 0:03:25]} 17. Qxg4 {[%emt 0:00:20]} d5 {[%emt 0:01:28]} 18. f5 {[%emt 0:01:09]} f6 {[%emt 0:01:17]} 19. Rf3 {[%emt 0:01:38]} Bxb4 {[%emt 0:02:38]} 20. Ne2 {[%emt 0:08:17]} Bc5+ {[%emt 0:00:57]} 21. Be3 {[%emt 0:02:34]} Bxe3+ {[%emt 0:00:06]} 22. Rxe3 {[%emt 0:00:05]} dxe4 {[%emt 0:01:20]} 23. Qxe4 {[%emt 0:01:45]} Nd5 {[%emt 0:00:29]} 24. Qc4 {[%emt 0:01:00] normal} Qb6 {[%emt 0:00:18] normal} 0-1

[Event "DVM U14 2019"]
[Site "Magedburg"]
[Date "2019.12.28"]
[Round "4"]
[White "Weihrauch, Jakob"]
[Black "Zeuner, Ole"]
[Result "1-0"]
[ECO "C55"]
[WhiteElo "2169"]
[BlackElo "1794"]
[Annotator "NA"]
[PlyCount "71"]
[EventDate "2019.12.27"]
[EventType "team-tourn"]
[EventRounds "7"]
[EventCountry "GER"]
[SourceTitle "playchess.com"]
[Source "ChessBase"]
[SourceQuality "1"]
[WhiteTeam "Hamburger SK"]
[BlackTeam "Schachzwerge Magdeburg"]
[WhiteTeamCountry "GER"]
[BlackTeamCountry "GER"]
[TimeControl "40/5400+30:1800+30"]

1. e4 {[%emt 0:00:00]} e5 {[%emt 0:00:00]} 2. Nf3 {[%emt 0:00:00]} Nc6 {[%emt 0:00:00]} 3. Bc4 {[%emt 0:00:17]} Nf6 {[%emt 0:00:12]} 4. d3 {[%emt 0:00:20]} h6 {[%emt 0:01:19]} 5. h3 {[%emt 0:01:06]} d6 {[%emt 0:00:34]} 6. Nbd2 {[%emt 0:01:22]} g6 {[%emt 0:00:25]} 7. O-O {[%emt 0:01:41]} Bg7 {[%emt 0:00:40]} 8. Re1 {[%emt 0:00:31]} O-O {[%emt 0:00:28]} 9. Nf1 {[%emt 0:00:57]} Qe7 {[%emt 0:01:35]} 10. Ng3 {[%emt 0:01:23]} Be6 {[%emt 0:01:46]} 11. Bxe6 {[%emt 0:02:01]} Qxe6 {[%emt 0:00:08]} 12. c3 {[%emt 0:01:43]} Rad8 {[%emt 0:12:23]} 13. d4 {[%emt 0:11:26]} exd4 {[%emt 0:04:03]} 14. cxd4 {[%emt 0:01:29]} d5 {[%emt 0:02:01]} 15. e5 {[%emt 0:01:25]} Nd7 {[%emt 0:01:03]} 16. Ne2 {[%emt 0:02:50]} Nb6 {[%emt 0:01:33]} 17. Nf4 {[%emt 0:01:08]} Qe7 {[%emt 0:01:33]} 18. Qd3 {[%emt 0:11:29]} Nb4 {[%emt 0:10:22]} 19. Qb1 {[%emt 0:01:25]} Nc6 {[%emt 0:06:59]} 20. Bd2 {[%emt 0:06:21]} Nc4 {[%emt 0:10:44]} 21. Bc3 {[%emt 0:01:01]} g5 {[%emt 0:08:37]} 22. Nh5 {[%emt 0:01:42]} Qe6 {[%emt 0:02:27]} 23. h4 {[%emt 0:07:05]} g4 {[%emt 0:07:25]} 24. Nh2 {[%emt 0:01:13]} b5 {[%emt 0:04:33]} 25. b3 {[%emt 0:03:45]} Nb6 {[%emt 0:03:44]} 26. Qd1 {[%emt 0:01:34]} Qf5 {[%emt 0:02:17]} 27. Nxg4 {[%emt 0:00:44]} Kh8 {[%emt 0:03:06]} 28. Ngf6 {[%emt 0:03:45]} Bxf6 {[%emt 0:03:16]} 29. Nxf6 {[%emt 0:00:10]} Nd7 {[%emt 0:02:09]} 30. Re3 {[%emt 0:03:22]} b4 {[%emt 0:06:23]} 31. Rf3 {[%emt 0:00:53]} Qg6 {[%emt 0:00:21]} 32. Rg3 {[%emt 0:01:53]} Qf5 {[%emt 0:00:29]} 33. Qc1 {[%emt 0:00:18]} Nxf6 {[%emt 0:01:30]} 34. Qxh6+ {[%emt 0:00:06]} Qh7 {[%emt 0:00:09]} 35. Qxf6+ {[%emt 0:00:05]} Qg7 {[%emt 0:00:04]} 36. Qxg7# {[%emt 0:00:05] normal} 1-0

[Event "DVM U14 2019"]
[Site "Magedburg"]
[Date "2019.12.28"]
[Round "4"]
[White "von Krosigk, Florian"]
[Black "Morgenstern, Tobias"]
[Result "0-1"]
[ECO "C77"]
[WhiteElo "1984"]
[BlackElo "1943"]
[Annotator "NA"]
[PlyCount "70"]
[EventDate "2019.12.27"]
[EventType "team-tourn"]
[EventRounds "7"]
[EventCountry "GER"]
[SourceTitle "playchess.com"]
[Source "ChessBase"]
[SourceQuality "1"]
[WhiteTeam "Hamburger SK"]
[BlackTeam "Schachzwerge Magdeburg"]
[WhiteTeamCountry "GER"]
[BlackTeamCountry "GER"]
[TimeControl "40/5400+30:1800+30"]

1. e4 {[%emt 0:00:00]} e5 {[%emt 0:00:00]} 2. Nf3 {[%emt 0:00:00]} Nc6 {[%emt 0:00:00]} 3. Bb5 {[%emt 0:00:00]} a6 {[%emt 0:00:00]} 4. Ba4 {[%emt 0:00:00]} Nf6 {[%emt 0:00:00]} 5. d3 {[%emt 0:00:00]} d6 {[%emt 0:00:08]} 6. O-O {[%emt 0:02:06]} b5 {[%emt 0:01:06]} 7. Bb3 {[%emt 0:00:02]} Na5 {[%emt 0:01:34]} 8. Bd2 {[%emt 0:02:27]} Nxb3 {[%emt 0:00:13]} 9. axb3 {[%emt 0:00:05]} Be7 {[%emt 0:00:25]} 10. b4 {[%emt 0:02:42]} O-O {[%emt 0:00:41]} 11. Nc3 {[%emt 0:00:17]} c6 {[%emt 0:04:14]} 12. h3 {[%emt 0:06:46]} Qc7 {[%emt 0:02:00]} 13. Re1 {[%emt 0:01:35]} h6 {[%emt 0:04:38]} 14. d4 {[%emt 0:02:09]} Be6 {[%emt 0:03:29]} 15. Be3 {[%emt 0:04:11]} Rfd8 {[%emt 0:02:18]} 16. Qe2 {[%emt 0:21:26]} Bc4 {[%emt 0:11:52]} 17. Qd2 {[%emt 0:01:13]} c5 {[%emt 0:01:17]} 18. b3 {[%emt 0:24:51]} exd4 {[%emt 0:10:58]} 19. bxc4 {[%emt 0:00:11]} dxe3 {[%emt 0:02:06]} 20. Rxe3 {[%emt 0:04:29]} cxb4 {[%emt 0:00:23]} 21. Na2 {[%emt 0:02:21]} Qxc4 {[%emt 0:01:50]} 22. Nxb4 {[%emt 0:03:16]} Nxe4 {[%emt 0:04:39]} 23. Qe1 {[%emt 0:01:18]} d5 {[%emt 0:03:06]} 24. Nxd5 {[%emt 0:01:31]} Qxd5 {[%emt 0:00:13]} 25. Rxe4 {[%emt 0:00:08]} Bf6 {[%emt 0:00:11]} 26. Ra3 {[%emt 0:02:23]} Qc5 {[%emt 0:04:14]} 27. Ra2 {[%emt 0:01:38]} Bc3 {[%emt 0:02:47]} 28. Qe2 {[%emt 0:00:45]} a5 {[%emt 0:03:16]} 29. Ne5 {[%emt 0:00:52]} f5 {[%emt 0:07:25]} 30. Re3 {[%emt 0:01:50]} Bd4 {[%emt 0:00:46]} 31. Nd7 {[%emt 0:07:07]} Qd5 {[%emt 0:02:51]} 32. Rxa5 {[%emt 0:00:47]} Qxd7 {[%emt 0:03:26]} 33. Re7 {[%emt 0:00:11]} Bxf2+ {[%emt 0:03:49]} 34. Kxf2 {[%emt 0:03:14]} Qd4+ {[%emt 0:00:11]} 35. Kg3 {[%emt 0:00:33]} Qd6+ {[%emt 0:00:47] normal} 0-1

[Event "DVM U14 2019"]
[Site "Magedburg"]
[Date "2019.12.28"]
[Round "4"]
[White "Schubert, Nikita"]
[Black "Hommer, Jeremy"]
[Result "1/2-1/2"]
[ECO "E19"]
[WhiteElo "1914"]
[BlackElo "2104"]
[Annotator "NA"]
[PlyCount "73"]
[EventDate "2019.12.27"]
[EventType "team-tourn"]
[EventRounds "7"]
[EventCountry "GER"]
[SourceTitle "playchess.com"]
[Source "ChessBase"]
[SourceQuality "1"]
[WhiteTeam "ESV Gera"]
[BlackTeam "SC Turm Lüneburg"]
[WhiteTeamCountry "GER"]
[TimeControl "40/5400+30:1800+30"]

1. d4 {[%emt 0:00:00]} Nf6 {[%emt 0:00:00]} 2. c4 {[%emt 0:00:00]} e6 {[%emt 0:00:00]} 3. Nf3 {[%emt 0:00:00]} b6 {[%emt 0:00:00]} 4. g3 {[%emt 0:00:20]} Bb7 {[%emt 0:00:00]} 5. Bg2 {[%emt 0:00:10]} Be7 {[%emt 0:00:02]} 6. O-O {[%emt 0:00:34]} O-O {[%emt 0:00:05]} 7. Nc3 {[%emt 0:00:06]} Ne4 {[%emt 0:00:18]} 8. Qd3 {[%emt 0:00:30]} Nxc3 {[%emt 0:00:08]} 9. Qxc3 {[%emt 0:00:23]} d6 {[%emt 0:01:05]} 10. b3 {[%emt 0:04:18]} f5 {[%emt 0:32:51]} 11. Bb2 {[%emt 0:02:06]} Bf6 {[%emt 0:03:28]} 12. Rad1 {[%emt 0:01:57]} Qe7 {[%emt 0:01:56]} 13. Qc1 {[%emt 0:06:23]} Nd7 {[%emt 0:02:11]} 14. Rfe1 {[%emt 0:11:50]} Rae8 {[%emt 0:08:50]} 15. Ba3 {[%emt 0:16:22]} c5 {[%emt 0:15:59]} 16. Bb2 {[%emt 0:15:46]} e5 {[%emt 0:03:55]} 17. dxe5 {[%emt 0:01:22]} dxe5 {[%emt 0:00:38]} 18. Nh4 {[%emt 0:00:56]} Bxg2 {[%emt 0:04:32]} 19. Nxg2 {[%emt 0:00:14]} e4 {[%emt 0:05:28]} 20. Ne3 {[%emt 0:07:55]} Bxb2 {[%emt 0:01:17]} 21. Qxb2 {[%emt 0:00:13]} Ne5 {[%emt 0:00:57]} 22. Nd5 {[%emt 0:07:24]} Qf7 {[%emt 0:00:17]} 23. Qd2 {[%emt 0:07:53]} h6 {[%emt 0:08:31]} 24. Kg2 {[%emt 0:06:22]} g5 {[%emt 0:01:46]} 25. f3 {[%emt 0:02:24]} exf3+ {[%emt 0:03:20]} 26. exf3 {[%emt 0:00:07]} Qh5 {[%emt 0:01:54]} 27. Qc3 {[%emt 0:01:19]} g4 {[%emt 0:03:28]} 28. Nf4 {[%emt 0:05:38]} gxf3+ {[%emt 0:00:30]} 29. Kh1 {[%emt 0:00:44]} Qg4 30. Rxe5 {[%emt 0:00:57]} f2 {[%emt 0:01:01]} 31. Rf1 {[%emt 0:00:28]} Rxe5 {[%emt 0:00:30]} 32. Qxe5 {[%emt 0:00:04]} Qf3+ {[%emt 0:00:22]} 33. Ng2 {[%emt 0:00:01]} Rd8 34. Qe6+ {[%emt 0:01:04]} Kf8 {[%emt 0:00:24]} 35. Qf6+ {[%emt 0:00:51]} Ke8 36. Qe6+ {[%emt 0:00:42]} Kf8 {[%emt 0:00:03]} 37. Qf6+ {[%emt 0:00:28] normal} 1/2-1/2

[Event "DVM U14 2019"]
[Site "Magedburg"]
[Date "2019.12.28"]
[Round "4"]
[White "Stockmann, Till"]
[Black "Garner, Isaac"]
[Result "0-1"]
[ECO "B49"]
[WhiteElo "1894"]
[BlackElo "2040"]
[Annotator "NA"]
[PlyCount "66"]
[EventDate "2019.12.27"]
[EventType "team-tourn"]
[EventRounds "7"]
[EventCountry "GER"]
[SourceTitle "playchess.com"]
[Source "ChessBase"]
[SourceQuality "1"]
[WhiteTeam "Schachzwerge Magdeburg"]
[BlackTeam "Hamburger SK"]
[WhiteTeamCountry "GER"]
[BlackTeamCountry "GER"]
[TimeControl "40/5400+30:1800+30"]

1. e4 {[%emt 0:00:00]} c5 {[%emt 0:00:00]} 2. Nf3 {[%emt 0:00:00]} e6 {[%emt 0:00:00]} 3. d4 {[%emt 0:00:02]} cxd4 {[%emt 0:00:00]} 4. Nxd4 {[%emt 0:00:09]} Nc6 {[%emt 0:00:00]} 5. Nc3 {[%emt 0:00:44]} Qc7 {[%emt 0:00:00]} 6. Be3 {[%emt 0:07:05]} a6 {[%emt 0:00:05]} 7. Be2 {[%emt 0:00:08]} b5 {[%emt 0:00:04]} 8. a3 {[%emt 0:03:57]} Bb7 {[%emt 0:04:16]} 9. f4 {[%emt 0:04:55]} Nf6 {[%emt 0:06:29]} 10. g4 {[%emt 0:11:52]} b4 {[%emt 0:07:04]} 11. axb4 {[%emt 0:00:08]} Bxb4 {[%emt 0:00:05]} 12. Bf3 {[%emt 0:01:06]} Na5 {[%emt 0:04:00]} 13. Qd3 {[%emt 0:02:35]} Nc4 {[%emt 0:02:59]} 14. Bc1 {[%emt 0:01:28]} d5 {[%emt 0:05:33]} 15. exd5 {[%emt 0:04:52]} Nxd5 {[%emt 0:05:01]} 16. O-O {[%emt 0:01:16]} Bxc3 {[%emt 0:01:40]} 17. bxc3 {[%emt 0:00:19]} O-O {[%emt 0:01:38]} 18. Be4 {[%emt 0:06:50]} g6 {[%emt 0:04:55]} 19. f5 {[%emt 0:03:11]} exf5 {[%emt 0:04:03]} 20. gxf5 {[%emt 0:00:17]} Rfe8 {[%emt 0:08:45]} 21. Bh6 {[%emt 0:05:25]} Nb4 {[%emt 0:07:54]} 22. cxb4 {[%emt 0:03:10]} Rxe4 {[%emt 0:00:58]} 23. Rf2 {[%emt 0:02:27]} Ne5 {[%emt 0:03:28]} 24. Qd2 {[%emt 0:06:34]} Rg4+ {[%emt 0:07:03]} 25. Kf1 {[%emt 0:00:19]} Qc4+ {[%emt 0:00:31]} 26. Ne2 {[%emt 0:00:51]} Qe4 {[%emt 0:05:11]} 27. Ng3 {[%emt 0:04:15]} Rxg3 {[%emt 0:00:31]} 28. hxg3 {[%emt 0:00:05]} Qh1+ {[%emt 0:00:39]} 29. Ke2 {[%emt 0:00:04]} Bf3+ {[%emt 0:02:19]} 30. Rxf3 {[%emt 0:00:47]} Qxf3+ {[%emt 0:00:05]} 31. Ke1 {[%emt 0:00:30]} Qh1+ {[%emt 0:00:32]} 32. Ke2 {[%emt 0:00:27]} Qxa1 {[%emt 0:01:23]} 33. f6 {[%emt 0:00:08]} Qh1 {[%emt 0:01:02] normal} 0-1

[Event "DVM U14 2019"]
[Site "Magedburg"]
[Date "2019.12.28"]
[Round "4"]
[White "Heutling, Elina"]
[Black "Blome, Johannes"]
[Result "1/2-1/2"]
[ECO "B40"]
[WhiteElo "1796"]
[BlackElo "1877"]
[Annotator "NA"]
[PlyCount "64"]
[EventDate "2019.12.27"]
[EventType "team-tourn"]
[EventRounds "7"]
[EventCountry "GER"]
[SourceTitle "playchess.com"]
[Source "ChessBase"]
[SourceQuality "1"]
[WhiteTeam "Schachzwerge Magdeburg"]
[BlackTeam "Hamburger SK"]
[WhiteTeamCountry "GER"]
[BlackTeamCountry "GER"]
[TimeControl "40/5400+30:1800+30"]

1. e4 {[%emt 0:00:00]} c5 {[%emt 0:00:00]} 2. Nf3 {[%emt 0:00:00]} e6 {[%emt 0:00:00]} 3. c4 {[%emt 0:00:00]} Nc6 {[%emt 0:00:05]} 4. Nc3 {[%emt 0:00:00]} Nd4 {[%emt 0:00:27]} 5. d3 {[%emt 0:09:22]} d6 {[%emt 0:05:56]} 6. Be3 {[%emt 0:05:23]} e5 {[%emt 0:02:46]} 7. Nd5 {[%emt 0:09:16]} Ne7 {[%emt 0:01:57]} 8. Nxe7 {[%emt 0:05:36]} Bxe7 {[%emt 0:00:14]} 9. Nxd4 {[%emt 0:00:15]} cxd4 {[%emt 0:00:46]} 10. Bd2 {[%emt 0:00:21]} Bg5 {[%emt 0:05:42]} 11. Be2 {[%emt 0:07:31]} O-O {[%emt 0:02:36]} 12. O-O {[%emt 0:04:59]} Bxd2 {[%emt 0:03:35]} 13. Qxd2 {[%emt 0:00:05]} a5 {[%emt 0:00:55]} 14. f4 {[%emt 0:04:25]} f5 {[%emt 0:18:05]} 15. Bf3 {[%emt 0:08:44]} Qc7 {[%emt 0:07:36]} 16. Rac1 {[%emt 0:06:34]} Ra6 {[%emt 0:10:10]} 17. exf5 {[%emt 0:03:26]} Bxf5 {[%emt 0:01:12]} 18. Bd5+ {[%emt 0:04:01]} Kh8 {[%emt 0:00:56]} 19. h3 {[%emt 0:08:00]} Raa8 {[%emt 0:08:03]} 20. Rf3 {[%emt 0:03:44]} Bd7 {[%emt 0:09:58]} 21. Qf2 {[%emt 0:06:44]} Bc6 {[%emt 0:04:54]} 22. fxe5 {[%emt 0:00:31]} Rxf3 {[%emt 0:00:18]} 23. Qxf3 {[%emt 0:00:07]} dxe5 {[%emt 0:02:44]} 24. Rf1 {[%emt 0:03:15]} h6 {[%emt 0:03:48]} 25. Be4 {[%emt 0:02:15]} Bxe4 {[%emt 0:01:07]} 26. Qxe4 {[%emt 0:00:01]} Qe7 {[%emt 0:01:11]} 27. Qd5 {[%emt 0:01:42]} Ra6 {[%emt 0:07:56]} 28. Rf7 {[%emt 0:01:09]} Qg5 {[%emt 0:00:27]} 29. Qxb7 {[%emt 0:01:48]} Rg6 {[%emt 0:00:14]} 30. Rf8+ {[%emt 0:00:20]} Kh7 {[%emt 0:00:06]} 31. Qa8 {[%emt 0:00:04]} Qe3+ {[%emt 0:01:06]} 32. Kh2 {[%emt 0:05:04]} Qg3+ {[%emt 0:00:09] normal} 1/2-1/2